[Event "November 21 Late 2023"]
[Site "https://www.chess.com"]
[Date "2023.11.21"]
[Round "8"]
[White "aghasiyevkamal"]
[Black "Musalov, Ruslan"]
[Result "1-0"]
[Board "66"]
[TimeControl "180+1"]
[BlackFideId "4141490"]
[WhiteElo "2576"]
[BlackElo "2268"]
[BlackTeam "RUS"]
[WhiteClock "0:00:20"]
[BlackClock "0:00:00"]

1. d4 {[%clk 0:02:57]}  d6 {[%clk 0:02:58]} 2. c4 {[%clk 0:02:55]}  Nc6 {[%clk 0:02:58]} 3. Nc3 {[%clk 0:02:52]}  e5 {[%clk 0:02:58]} 4. Nf3 {[%clk 0:02:51]}  Nf6 {[%clk 0:02:58]} 5. d5 {[%clk 0:02:44]}  Ne7 {[%clk 0:02:58]} 6. h4 {[%clk 0:02:41]}  Bg4 {[%clk 0:02:55]} 7. Qb3 {[%clk 0:02:36]}  Qc8 {[%clk 0:02:50]} 8. g3 {[%clk 0:02:27]}  g6 {[%clk 0:02:47]} 9. Bg2 {[%clk 0:02:25]}  Bg7 {[%clk 0:02:46]} 10. Qa4+ {[%clk 0:02:07]}  Bd7 {[%clk 0:02:37]} 11. Qa3 {[%clk 0:02:07]}  O-O {[%clk 0:02:36]} 12. Bg5 {[%clk 0:02:01]}  h6 {[%clk 0:02:35]} 13. Bxf6 {[%clk 0:02:01]}  Bxf6 {[%clk 0:02:34]} 14. c5 {[%clk 0:02:01]}  dxc5 {[%clk 0:02:21]} 15. Qxc5 {[%clk 0:01:46]}  Nf5 {[%clk 0:02:21]} 16. O-O {[%clk 0:01:43]}  Nd6 {[%clk 0:02:03]} 17. Rac1 {[%clk 0:01:39]}  Qd8 {[%clk 0:02:00]} 18. Nd2 {[%clk 0:01:26]}  b6 {[%clk 0:01:51]} 19. Qa3 {[%clk 0:01:18]}  Bg7 {[%clk 0:01:47]} 20. Nce4 {[%clk 0:01:11]}  Bg4 {[%clk 0:01:37]} 21. Nxd6 {[%clk 0:01:05]}  Qxd6 {[%clk 0:01:28]} 22. Qxd6 {[%clk 0:01:05]}  cxd6 {[%clk 0:01:28]} 23. e4 {[%clk 0:00:48]}  Rfc8 {[%clk 0:01:24]} 24. Kh2 {[%clk 0:00:45]}  Rxc1 {[%clk 0:01:12]} 25. Rxc1 {[%clk 0:00:44]}  Rc8 {[%clk 0:01:13]} 26. Rc6 {[%clk 0:00:32]}  Kf8 {[%clk 0:00:46]} 27. b4 {[%clk 0:00:29]}  Bd7 {[%clk 0:00:44]} 28. b5 {[%clk 0:00:18]}  Bxc6 {[%clk 0:00:42]} 29. dxc6 {[%clk 0:00:18]}  a6 {[%clk 0:00:27]} 30. a4 {[%clk 0:00:18]}  axb5 {[%clk 0:00:27]} 31. axb5 {[%clk 0:00:18]}  Ra8 {[%clk 0:00:25]} 32. Nc4 {[%clk 0:00:18]}  Ke7 {[%clk 0:00:23]} 33. Nxb6 {[%clk 0:00:18]}  Ra2 {[%clk 0:00:15]} 34. c7 {[%clk 0:00:17]}  Rc2 {[%clk 0:00:15]} 35. c8=Q {[%clk 0:00:18]}  Rxc8 {[%clk 0:00:15]} 36. Nxc8+ {[%clk 0:00:18]}  Kd7 {[%clk 0:00:16]} 37. Nb6+ {[%clk 0:00:19]}  Kc7 {[%clk 0:00:15]} 38. Nd5+ {[%clk 0:00:19]}  Kb7 {[%clk 0:00:16]} 39. Bh3 {[%clk 0:00:19]}  f6 {[%clk 0:00:09]} 40. Bd7 {[%clk 0:00:19]}  Bh8 {[%clk 0:00:08]} 41. Bc6+ {[%clk 0:00:19]}  Kb8 {[%clk 0:00:08]} 42. b6 {[%clk 0:00:19]}  f5 {[%clk 0:00:08]} 43. f3 {[%clk 0:00:18]}  fxe4 {[%clk 0:00:08]} 44. fxe4 {[%clk 0:00:19]}  Bg7 {[%clk 0:00:07]} 45. Kh3 {[%clk 0:00:19]}  h5 {[%clk 0:00:07]} 46. g4 {[%clk 0:00:19]}  Bf8 {[%clk 0:00:05]} 47. g5 {[%clk 0:00:19]}  Bg7 {[%clk 0:00:05]} 48. Kg3 {[%clk 0:00:19]}  Bf8 {[%clk 0:00:05]} 49. Kf3 {[%clk 0:00:19]}  Bg7 {[%clk 0:00:06]} 50. Ke3 {[%clk 0:00:20]}  Bf8 {[%clk 0:00:06]} 51. Kd3 {[%clk 0:00:20]}  Bg7 {[%clk 0:00:06]} 52. Kc4 {[%clk 0:00:21]}  Bf8 {[%clk 0:00:07]} 53. Kb5 {[%clk 0:00:21]}  Bg7 {[%clk 0:00:08]} 54. Be8 {[%clk 0:00:21]}  Bf8 {[%clk 0:00:09]} 55. Kc6 {[%clk 0:00:21]}  Bg7 {[%clk 0:00:00]} 56. Bxg6 {[%clk 0:00:20]} 1-0

[Event "November 21 Late 2023"]
[Site "https://www.chess.com"]
[Date "2023.11.21"]
[Round "8"]
[White "ATM622"]
[Black "Deng, Henry"]
[Result "0-1"]
[Board "68"]
[TimeControl "180+1"]
[BlackFideId "30965454"]
[WhiteElo "2463"]
[BlackElo "2557"]
[BlackTeam "USA"]
[WhiteClock "0:00:00"]
[BlackClock "0:00:26"]

1. d4 {[%clk 0:03:00]}  d5 {[%clk 0:02:58]} 2. c4 {[%clk 0:03:01]}  c6 {[%clk 0:02:58]} 3. Nf3 {[%clk 0:03:01]}  Nf6 {[%clk 0:02:58]} 4. Nbd2 {[%clk 0:03:01]}  Bf5 {[%clk 0:02:52]} 5. Nh4 {[%clk 0:03:00]}  Be4 {[%clk 0:02:49]} 6. e3 {[%clk 0:02:59]}  Nbd7 {[%clk 0:02:34]} 7. Be2 {[%clk 0:02:56]}  e6 {[%clk 0:02:33]} 8. O-O {[%clk 0:02:55]}  h6 {[%clk 0:02:33]} 9. cxd5 {[%clk 0:02:50]}  exd5 {[%clk 0:02:31]} 10. Nxe4 {[%clk 0:02:44]}  Nxe4 {[%clk 0:02:32]} 11. Nf5 {[%clk 0:02:38]}  Nd6 {[%clk 0:02:09]} 12. Ng3 {[%clk 0:02:33]}  Be7 {[%clk 0:02:07]} 13. Bd3 {[%clk 0:02:26]}  O-O {[%clk 0:02:03]} 14. Qh5 {[%clk 0:02:10]}  Nf6 {[%clk 0:01:59]} 15. Qh3 {[%clk 0:02:09]}  Qc8 {[%clk 0:01:53]} 16. Bf5 {[%clk 0:02:05]}  Qc7 {[%clk 0:01:42]} 17. Bd3 {[%clk 0:02:01]}  Rfe8 {[%clk 0:01:39]} 18. Nf5 {[%clk 0:01:58]}  Nxf5 {[%clk 0:01:37]} 19. Qxf5 {[%clk 0:01:58]}  Qc8 {[%clk 0:01:36]} 20. Qf3 {[%clk 0:01:55]}  Bd6 {[%clk 0:01:28]} 21. Bf5 {[%clk 0:01:51]}  Qc7 {[%clk 0:01:27]} 22. h3 {[%clk 0:01:51]}  Ne4 {[%clk 0:01:25]} 23. a4 {[%clk 0:01:43]}  a5 {[%clk 0:01:24]} 24. h4 {[%clk 0:01:10]}  Qe7 {[%clk 0:01:21]} 25. g3 {[%clk 0:01:09]}  g6 {[%clk 0:01:12]} 26. Bh3 {[%clk 0:01:05]}  h5 {[%clk 0:01:10]} 27. b3 {[%clk 0:01:01]}  Kg7 {[%clk 0:01:03]} 28. Kg2 {[%clk 0:00:58]}  Bb4 {[%clk 0:00:57]} 29. Ra2 {[%clk 0:00:41]}  Rad8 {[%clk 0:00:50]} 30. Rc2 {[%clk 0:00:35]}  Rd6 {[%clk 0:00:47]} 31. Qe2 {[%clk 0:00:29]}  Rf6 {[%clk 0:00:37]} 32. f3 {[%clk 0:00:28]}  Nd6 {[%clk 0:00:34]} 33. Bb2 {[%clk 0:00:21]}  Nf5 {[%clk 0:00:18]} 34. Kf2 {[%clk 0:00:15]}  Nxe3 {[%clk 0:00:17]} 35. Rd2 {[%clk 0:00:05]}  Bxd2 {[%clk 0:00:17]} 36. Qxd2 {[%clk 0:00:06]}  Nf5 {[%clk 0:00:17]} 37. Bc3 {[%clk 0:00:05]}  Re6 {[%clk 0:00:17]} 38. Kg1 {[%clk 0:00:04]}  Re2 {[%clk 0:00:17]} 39. Qd3 {[%clk 0:00:04]}  Qe3+ {[%clk 0:00:18]} 40. Qxe3 {[%clk 0:00:04]}  Nxe3 {[%clk 0:00:18]} 41. Re1 {[%clk 0:00:02]}  Rxe1+ {[%clk 0:00:19]} 42. Bxe1 {[%clk 0:00:03]}  Nc2 {[%clk 0:00:19]} 43. Bxa5 {[%clk 0:00:04]}  Re3 {[%clk 0:00:18]} 44. Kf2 {[%clk 0:00:03]}  Rxb3 {[%clk 0:00:18]} 45. Bc7 {[%clk 0:00:03]}  Kh7 {[%clk 0:00:17]} 46. Be5 {[%clk 0:00:03]}  Ra3 {[%clk 0:00:17]} 47. Bd7 {[%clk 0:00:01]}  Nb4 {[%clk 0:00:16]} 48. Be8 {[%clk 0:00:02]}  Nd3+ {[%clk 0:00:17]} 49. Kf1 {[%clk 0:00:01]}  Nxe5 {[%clk 0:00:17]} 50. dxe5 {[%clk 0:00:02]}  Kg7 {[%clk 0:00:18]} 51. Bd7 {[%clk 0:00:02]}  Rxa4 {[%clk 0:00:18]} 52. e6 {[%clk 0:00:03]}  fxe6 {[%clk 0:00:18]} 53. Bxe6 {[%clk 0:00:04]}  Rd4 {[%clk 0:00:19]} 54. Bc8 {[%clk 0:00:04]}  b5 {[%clk 0:00:19]} 55. Bd7 {[%clk 0:00:05]}  c5 {[%clk 0:00:19]} 56. Bxb5 {[%clk 0:00:05]}  c4 {[%clk 0:00:20]} 57. Ke2 {[%clk 0:00:06]}  c3 {[%clk 0:00:21]} 58. Bd3 {[%clk 0:00:04]}  Kf6 {[%clk 0:00:20]} 59. Ke3 {[%clk 0:00:05]}  Rb4 {[%clk 0:00:20]} 60. Bc2 {[%clk 0:00:04]}  g5 {[%clk 0:00:20]} 61. hxg5+ {[%clk 0:00:03]}  Kxg5 {[%clk 0:00:21]} 62. Kd3 {[%clk 0:00:04]}  d4 {[%clk 0:00:21]} 63. Bd1 {[%clk 0:00:02]}  Kf6 {[%clk 0:00:22]} 64. Bc2 {[%clk 0:00:02]}  Ke7 {[%clk 0:00:22]} 65. Bd1 {[%clk 0:00:02]}  Kd6 {[%clk 0:00:23]} 66. f4 {[%clk 0:00:03]}  Kc5 {[%clk 0:00:24]} 67. Bxh5 {[%clk 0:00:03]}  Rb2 {[%clk 0:00:24]} 68. f5 {[%clk 0:00:02]}  Rg2 {[%clk 0:00:24]} 69. g4 {[%clk 0:00:02]}  c2 {[%clk 0:00:24]} 70. f6 {[%clk 0:00:01]}  c1=Q {[%clk 0:00:24]} 71. Ke4 {[%clk 0:00:01]}  Qe3+ {[%clk 0:00:25]} 72. Kf5 {[%clk 0:00:01]}  Rf2+ {[%clk 0:00:25]} 73. Kg6 {[%clk 0:00:01]}  Qe4+ {[%clk 0:00:25]} 74. Kg7 {[%clk 0:00:01]}  Qe5 {[%clk 0:00:25]} 75. g5 {[%clk 0:00:01]}  Qxg5+ {[%clk 0:00:26]} 76. Bg6 {[%clk 0:00:00]}  Qxf6+ {[%clk 0:00:26]} 0-1

[Event "November 21 Late 2023"]
[Site "https://www.chess.com"]
[Date "2023.11.21"]
[Round "8"]
[White "YouShallNotPass001"]
[Black "D`Arruda, Ricardo D."]
[Result "1-0"]
[Board "70"]
[TimeControl "180+1"]
[BlackFideId "100692"]
[WhiteElo "2445"]
[BlackElo "2538"]
[BlackTeam "ARG"]
[WhiteClock "0:02:08"]
[BlackClock "0:01:20"]

1. Nf3 {[%clk 0:03:00]}  d5 {[%clk 0:02:59]} 2. e3 {[%clk 0:03:01]}  Nf6 {[%clk 0:02:59]} 3. Be2 {[%clk 0:03:02]}  g6 {[%clk 0:02:59]} 4. O-O {[%clk 0:03:03]}  Bg7 {[%clk 0:02:59]} 5. d4 {[%clk 0:03:03]}  O-O {[%clk 0:02:59]} 6. c4 {[%clk 0:03:04]}  c6 {[%clk 0:02:57]} 7. Nc3 {[%clk 0:03:05]}  b6 {[%clk 0:02:53]} 8. b4 {[%clk 0:03:06]}  Bb7 {[%clk 0:02:52]} 9. a4 {[%clk 0:03:07]}  Nbd7 {[%clk 0:02:48]} 10. c5 {[%clk 0:03:08]}  a5 {[%clk 0:02:44]} 11. Ba3 {[%clk 0:03:09]}  axb4 {[%clk 0:02:44]} 12. Bxb4 {[%clk 0:03:08]}  bxc5 {[%clk 0:02:44]} 13. dxc5 {[%clk 0:03:06]}  Ne4 {[%clk 0:02:43]} 14. Nxe4 {[%clk 0:02:42]}  Bxa1 {[%clk 0:02:41]} 15. Qxa1 {[%clk 0:02:43]}  dxe4 {[%clk 0:02:40]} 16. Nd4 {[%clk 0:02:41]}  e5 {[%clk 0:02:34]} 17. Nb3 {[%clk 0:02:39]}  Ba6 {[%clk 0:02:34]} 18. Bxa6 {[%clk 0:02:30]}  Rxa6 {[%clk 0:02:34]} 19. Rd1 {[%clk 0:02:30]}  Qe7 {[%clk 0:02:31]} 20. Nd2 {[%clk 0:02:23]}  Rb8 {[%clk 0:02:23]} 21. Nxe4 {[%clk 0:02:22]}  Rxb4 {[%clk 0:02:07]} 22. Rxd7 {[%clk 0:02:20]}  Rbxa4 {[%clk 0:02:04]} 23. Qf1 {[%clk 0:02:10]}  Ra1 {[%clk 0:02:00]} 24. Rd1 {[%clk 0:02:10]}  Rxd1 {[%clk 0:01:56]} 25. Qxd1 {[%clk 0:02:11]}  Qd7 {[%clk 0:01:20]} 26. Nf6+ {[%clk 0:02:08]} 1-0

[Event "November 21 Late 2023"]
[Site "https://www.chess.com"]
[Date "2023.11.21"]
[Round "8"]
[White "Seletsky, Grigory"]
[Black "Rios Escobar, Adan"]
[Result "0-1"]
[Board "74"]
[TimeControl "180+1"]
[WhiteFideId "14112191"]
[BlackFideId "3403645"]
[WhiteElo "2482"]
[BlackElo "2411"]
[WhiteTeam "UKR"]
[BlackTeam "CHI"]
[WhiteClock "0:00:30"]
[BlackClock "0:00:12"]

1. b3 {[%clk 0:02:50]}  Nf6 {[%clk 0:02:53]} 2. Bb2 {[%clk 0:02:51]}  g6 {[%clk 0:02:52]} 3. Bxf6 {[%clk 0:02:52]}  exf6 {[%clk 0:02:53]} 4. d4 {[%clk 0:02:52]}  c5 {[%clk 0:02:53]} 5. e3 {[%clk 0:02:46]}  cxd4 {[%clk 0:02:45]} 6. exd4 {[%clk 0:02:46]}  Qa5+ {[%clk 0:02:41]} 7. c3 {[%clk 0:02:45]}  d5 {[%clk 0:02:39]} 8. Bd3 {[%clk 0:02:45]}  Nc6 {[%clk 0:02:36]} 9. Ne2 {[%clk 0:02:45]}  Bg4 {[%clk 0:02:31]} 10. f3 {[%clk 0:02:43]}  Be6 {[%clk 0:02:23]} 11. O-O {[%clk 0:02:44]}  Bh6 {[%clk 0:02:20]} 12. f4 {[%clk 0:02:38]}  Bg4 {[%clk 0:02:17]} 13. h3 {[%clk 0:02:38]}  Be6 {[%clk 0:02:00]} 14. b4 {[%clk 0:02:26]}  Qb6 {[%clk 0:01:56]} 15. Nd2 {[%clk 0:02:25]}  Ne7 {[%clk 0:01:42]} 16. g4 {[%clk 0:02:15]}  Qc7 {[%clk 0:01:24]} 17. Kg2 {[%clk 0:02:08]}  Qd7 {[%clk 0:01:13]} 18. a4 {[%clk 0:02:06]}  Rc8 {[%clk 0:01:01]} 19. a5 {[%clk 0:02:05]}  Bxg4 {[%clk 0:00:47]} 20. hxg4 {[%clk 0:02:03]}  Qxg4+ {[%clk 0:00:47]} 21. Ng3 {[%clk 0:02:00]}  Qxd1 {[%clk 0:00:45]} 22. Bb5+ {[%clk 0:01:48]}  Kf8 {[%clk 0:00:39]} 23. Raxd1 {[%clk 0:01:48]}  Rxc3 {[%clk 0:00:36]} 24. Rf3 {[%clk 0:01:42]}  Rc2 {[%clk 0:00:30]} 25. Rd3 {[%clk 0:01:14]}  Bxf4 {[%clk 0:00:25]} 26. Kf3 {[%clk 0:01:13]}  Bxg3 {[%clk 0:00:25]} 27. Kxg3 {[%clk 0:01:13]}  Nf5+ {[%clk 0:00:25]} 28. Kf4 {[%clk 0:01:11]}  Kg7 {[%clk 0:00:22]} 29. Re1 {[%clk 0:01:04]}  h5 {[%clk 0:00:21]} 30. Bd7 {[%clk 0:01:01]}  Nd6 {[%clk 0:00:19]} 31. a6 {[%clk 0:01:00]}  bxa6 {[%clk 0:00:18]} 32. Ra1 {[%clk 0:00:58]}  Rb8 {[%clk 0:00:15]} 33. Rxa6 {[%clk 0:00:56]}  Nc4 {[%clk 0:00:16]} 34. Nxc4 {[%clk 0:00:50]}  dxc4 {[%clk 0:00:16]} 35. Re3 {[%clk 0:00:48]}  Rb7 {[%clk 0:00:13]} 36. Bc6 {[%clk 0:00:47]}  Rxb4 {[%clk 0:00:13]} 37. Rxa7 {[%clk 0:00:46]}  Rb3 {[%clk 0:00:13]} 38. Ree7 {[%clk 0:00:43]}  g5+ {[%clk 0:00:13]} 39. Ke4 {[%clk 0:00:42]}  Re2+ {[%clk 0:00:13]} 40. Kd5 {[%clk 0:00:42]}  Rxe7 {[%clk 0:00:12]} 41. Rxe7 {[%clk 0:00:43]}  c3 {[%clk 0:00:13]} 42. Re2 {[%clk 0:00:39]}  Rb2 {[%clk 0:00:12]} 43. Rxb2 {[%clk 0:00:37]}  cxb2 {[%clk 0:00:13]} 44. Kd6 {[%clk 0:00:35]}  b1=Q {[%clk 0:00:13]} 45. d5 {[%clk 0:00:35]}  Qb4+ {[%clk 0:00:13]} 46. Kc7 {[%clk 0:00:33]}  Qe7+ {[%clk 0:00:12]} 47. Kc8 {[%clk 0:00:30]}  Qd6 {[%clk 0:00:12]} 0-1

[Event "November 21 Late 2023"]
[Site "https://www.chess.com"]
[Date "2023.11.21"]
[Round "8"]
[White "Schmakel, Sam"]
[Black "Novikova, Galina"]
[Result "1-0"]
[Board "77"]
[TimeControl "180+1"]
[WhiteFideId "2039311"]
[BlackFideId "4157095"]
[WhiteElo "2356"]
[BlackElo "1972"]
[WhiteTeam "USA"]
[BlackTeam "RUS"]
[WhiteClock "0:01:03"]
[BlackClock "0:01:30"]

1. e4 {[%clk 0:03:00]}  e6 {[%clk 0:02:58]} 2. b3 {[%clk 0:02:54]}  d5 {[%clk 0:02:59]} 3. Bb2 {[%clk 0:02:54]}  dxe4 {[%clk 0:03:00]} 4. Nc3 {[%clk 0:02:53]}  Nf6 {[%clk 0:03:01]} 5. Qe2 {[%clk 0:02:50]}  Nc6 {[%clk 0:03:01]} 6. Nxe4 {[%clk 0:02:49]}  Nd4 {[%clk 0:03:01]} 7. Qd3 {[%clk 0:02:47]}  e5 {[%clk 0:03:01]} 8. g3 {[%clk 0:02:27]}  Be7 {[%clk 0:02:49]} 9. Bg2 {[%clk 0:02:25]}  Nxe4 {[%clk 0:02:38]} 10. Bxe4 {[%clk 0:02:11]}  f5 {[%clk 0:02:39]} 11. Bg2 {[%clk 0:02:12]}  O-O {[%clk 0:02:33]} 12. Bxd4 {[%clk 0:01:51]}  exd4 {[%clk 0:02:32]} 13. Ne2 {[%clk 0:01:50]}  Bf6 {[%clk 0:02:29]} 14. O-O {[%clk 0:01:48]}  Kh8 {[%clk 0:02:29]} 15. Nf4 {[%clk 0:01:48]}  c6 {[%clk 0:02:25]} 16. Rfe1 {[%clk 0:01:47]}  Qd6 {[%clk 0:02:25]} 17. c4 {[%clk 0:01:33]}  Bd7 {[%clk 0:02:23]} 18. Re2 {[%clk 0:01:18]}  Be5 {[%clk 0:02:22]} 19. Rae1 {[%clk 0:01:14]}  Bxf4 {[%clk 0:02:18]} 20. gxf4 {[%clk 0:01:15]}  Qxf4 {[%clk 0:02:18]} 21. Re7 {[%clk 0:01:14]}  Rad8 {[%clk 0:02:11]} 22. Qg3 {[%clk 0:01:11]}  Qh6 {[%clk 0:02:07]} 23. Qc7 {[%clk 0:01:05]}  Bc8 {[%clk 0:01:30]} 24. Qxd8 {[%clk 0:01:03]} 1-0

[Event "November 21 Late 2023"]
[Site "https://www.chess.com"]
[Date "2023.11.21"]
[Round "8"]
[White "Tikhonov, Viacheslav"]
[Black "Marcziter, Dmitrii"]
[Result "1-0"]
[Board "79"]
[TimeControl "180+1"]
[WhiteFideId "44196407"]
[BlackFideId "13900765"]
[WhiteElo "2191"]
[BlackElo "2142"]
[WhiteTeam "RUS"]
[BlackTeam "GER"]
[WhiteClock "0:00:06"]
[BlackClock "0:00:00"]

1. e4 {[%clk 0:03:00]}  e5 {[%clk 0:02:59]} 2. Nf3 {[%clk 0:03:00]}  Nc6 {[%clk 0:02:59]} 3. Bc4 {[%clk 0:03:01]}  Bc5 {[%clk 0:02:58]} 4. O-O {[%clk 0:03:01]}  Nf6 {[%clk 0:02:56]} 5. d4 {[%clk 0:03:01]}  exd4 {[%clk 0:02:54]} 6. e5 {[%clk 0:03:02]}  d5 {[%clk 0:02:53]} 7. exf6 {[%clk 0:03:03]}  dxc4 {[%clk 0:02:52]} 8. fxg7 {[%clk 0:03:04]}  Rg8 {[%clk 0:02:51]} 9. Re1+ {[%clk 0:03:05]}  Be6 {[%clk 0:02:49]} 10. Bg5 {[%clk 0:03:05]}  Qd5 {[%clk 0:02:49]} 11. Nc3 {[%clk 0:03:05]}  Qf5 {[%clk 0:02:48]} 12. Ne4 {[%clk 0:02:47]}  Be7 {[%clk 0:02:43]} 13. Bxe7 {[%clk 0:02:31]}  Kxe7 {[%clk 0:02:19]} 14. Nh4 {[%clk 0:01:53]}  Qf4 {[%clk 0:01:39]} 15. Ng3 {[%clk 0:01:36]}  Kd7 {[%clk 0:01:26]} 16. Re4 {[%clk 0:01:26]}  Qg5 {[%clk 0:01:16]} 17. Nf3 {[%clk 0:00:51]}  Qxg7 {[%clk 0:00:56]} 18. Nxd4 {[%clk 0:00:44]}  Nxd4 {[%clk 0:00:53]} 19. Rxd4+ {[%clk 0:00:43]}  Ke7 {[%clk 0:00:49]} 20. Qe2 {[%clk 0:00:30]}  Qg6 {[%clk 0:00:29]} 21. Rxc4 {[%clk 0:00:13]}  c6 {[%clk 0:00:26]} 22. Rc5 {[%clk 0:00:09]}  Kf8 {[%clk 0:00:23]} 23. Rd1 {[%clk 0:00:07]}  Re8 {[%clk 0:00:17]} 24. Qd3 {[%clk 0:00:04]}  Kg7 {[%clk 0:00:14]} 25. Qxg6+ {[%clk 0:00:01]}  hxg6 {[%clk 0:00:14]} 26. b3 {[%clk 0:00:02]}  Bd5 {[%clk 0:00:12]} 27. Rc3 {[%clk 0:00:02]}  Re5 {[%clk 0:00:08]} 28. Rcd3 {[%clk 0:00:02]}  Rge8 {[%clk 0:00:08]} 29. Nf1 {[%clk 0:00:01]}  Re1 {[%clk 0:00:07]} 30. R3d2 {[%clk 0:00:02]}  Rxd1 {[%clk 0:00:07]} 31. Rxd1 {[%clk 0:00:03]}  Re2 {[%clk 0:00:07]} 32. Ne3 {[%clk 0:00:03]}  Be6 {[%clk 0:00:07]} 33. Kf1 {[%clk 0:00:04]}  Rxe3 {[%clk 0:00:04]} 34. fxe3 {[%clk 0:00:05]}  Bg4 {[%clk 0:00:04]} 35. Rd2 {[%clk 0:00:05]}  Be6 {[%clk 0:00:04]} 36. c4 {[%clk 0:00:05]}  Kf6 {[%clk 0:00:04]} 37. Ke2 {[%clk 0:00:05]}  Ke5 {[%clk 0:00:05]} 38. Kf3 {[%clk 0:00:06]}  a5 {[%clk 0:00:05]} 39. a4 {[%clk 0:00:05]}  f5 {[%clk 0:00:03]} 40. h3 {[%clk 0:00:06]}  g5 {[%clk 0:00:03]} 41. g4 {[%clk 0:00:05]}  fxg4+ {[%clk 0:00:03]} 42. hxg4 {[%clk 0:00:06]}  b6 {[%clk 0:00:01]} 43. Rd8 {[%clk 0:00:05]}  b5 {[%clk 0:00:01]} 44. cxb5 {[%clk 0:00:05]}  cxb5 {[%clk 0:00:02]} 45. axb5 {[%clk 0:00:05]}  Bxb3 {[%clk 0:00:02]} 46. b6 {[%clk 0:00:05]}  a4 {[%clk 0:00:00]} 47. b7 {[%clk 0:00:06]} 1-0

[Event "November 21 Late 2023"]
[Site "https://www.chess.com"]
[Date "2023.11.21"]
[Round "8"]
[White "Ferreira, Vitor Hugo Vieira"]
[Black "Bochnicka, Vladimir"]
[Result "0-1"]
[Board "81"]
[TimeControl "180+1"]
[WhiteFideId "2119765"]
[BlackFideId "14943450"]
[WhiteElo "2123"]
[BlackElo "2170"]
[WhiteTeam "BRA"]
[BlackTeam "SVK"]
[WhiteClock "0:00:06"]
[BlackClock "0:00:09"]

1. d4 {[%clk 0:03:00]}  Nf6 {[%clk 0:02:59]} 2. c4 {[%clk 0:03:00]}  g6 {[%clk 0:03:00]} 3. Nc3 {[%clk 0:03:00]}  Bg7 {[%clk 0:03:00]} 4. e4 {[%clk 0:03:00]}  d6 {[%clk 0:03:01]} 5. Nf3 {[%clk 0:03:00]}  O-O {[%clk 0:03:02]} 6. Be2 {[%clk 0:03:00]}  e5 {[%clk 0:03:02]} 7. Be3 {[%clk 0:03:01]}  Nc6 {[%clk 0:03:03]} 8. O-O {[%clk 0:02:44]}  Ng4 {[%clk 0:02:57]} 9. Bg5 {[%clk 0:02:44]}  f6 {[%clk 0:02:56]} 10. Bc1 {[%clk 0:02:43]}  f5 {[%clk 0:02:30]} 11. dxe5 {[%clk 0:02:34]}  Ngxe5 {[%clk 0:02:27]} 12. Nxe5 {[%clk 0:02:26]}  Nxe5 {[%clk 0:02:24]} 13. Qd5+ {[%clk 0:01:49]}  Kh8 {[%clk 0:02:22]} 14. c5 {[%clk 0:01:49]}  dxc5 {[%clk 0:02:18]} 15. Qxc5 {[%clk 0:01:47]}  f4 {[%clk 0:02:10]} 16. Rd1 {[%clk 0:01:45]}  Qh4 {[%clk 0:02:05]} 17. g3 {[%clk 0:01:34]}  fxg3 {[%clk 0:02:01]} 18. hxg3 {[%clk 0:01:34]}  Qh3 {[%clk 0:01:54]} 19. Bf4 {[%clk 0:01:22]}  Ng4 {[%clk 0:01:39]} 20. f3 {[%clk 0:00:59]}  Qh2+ {[%clk 0:01:23]} 21. Kf1 {[%clk 0:00:59]}  Qh3+ {[%clk 0:00:36]} 22. Ke1 {[%clk 0:00:54]}  Nh2 {[%clk 0:00:25]} 23. Be5 {[%clk 0:00:49]}  Be6 {[%clk 0:00:16]} 24. Bxg7+ {[%clk 0:00:44]}  Kxg7 {[%clk 0:00:16]} 25. Qe5+ {[%clk 0:00:30]}  Kg8 {[%clk 0:00:16]} 26. g4 {[%clk 0:00:16]}  Rae8 {[%clk 0:00:10]} 27. Kd2 {[%clk 0:00:12]}  Rxf3 {[%clk 0:00:08]} 28. Kc2 {[%clk 0:00:10]}  Rf2 {[%clk 0:00:08]} 29. Rd2 {[%clk 0:00:10]}  Bb3+ {[%clk 0:00:08]} 30. axb3 {[%clk 0:00:10]}  Rxe5 {[%clk 0:00:09]} 31. Bc4+ {[%clk 0:00:09]}  Rf7 {[%clk 0:00:07]} 32. Rh1 {[%clk 0:00:08]}  Qxg4 {[%clk 0:00:05]} 33. Rdxh2 {[%clk 0:00:08]}  h5 {[%clk 0:00:05]} 34. Rf2 {[%clk 0:00:07]}  Re7 {[%clk 0:00:02]} 35. Rhf1 {[%clk 0:00:07]}  b5 {[%clk 0:00:02]} 36. Bd5 {[%clk 0:00:05]}  c6 {[%clk 0:00:02]} 37. Bxf7+ {[%clk 0:00:05]}  Kh7 {[%clk 0:00:02]} 38. e5 {[%clk 0:00:03]}  b4 {[%clk 0:00:02]} 39. Kc1 {[%clk 0:00:04]}  bxc3 {[%clk 0:00:02]} 40. e6 {[%clk 0:00:04]}  cxb2+ {[%clk 0:00:02]} 41. Kxb2 {[%clk 0:00:05]}  Qd4+ {[%clk 0:00:02]} 42. Ka2 {[%clk 0:00:05]}  h4 {[%clk 0:00:02]} 43. Re2 {[%clk 0:00:05]}  h3 {[%clk 0:00:02]} 44. Rfe1 {[%clk 0:00:05]}  Qf4 {[%clk 0:00:01]} 45. Rf2 {[%clk 0:00:04]}  Qc7 {[%clk 0:00:02]} 46. Ref1 {[%clk 0:00:05]}  Qg3 {[%clk 0:00:02]} 47. Rf3 {[%clk 0:00:05]}  Qh2+ {[%clk 0:00:02]} 48. R3f2 {[%clk 0:00:06]}  Qc7 {[%clk 0:00:03]} 49. Rf3 {[%clk 0:00:05]}  Qh2+ {[%clk 0:00:03]} 50. R1f2 {[%clk 0:00:05]}  Qe5 {[%clk 0:00:04]} 51. Rf1 {[%clk 0:00:05]}  Kg7 {[%clk 0:00:05]} 52. Rxh3 {[%clk 0:00:04]}  Rb7 {[%clk 0:00:06]} 53. Rd3 {[%clk 0:00:04]}  Qa5+ {[%clk 0:00:06]} 54. Kb2 {[%clk 0:00:04]}  Qb5 {[%clk 0:00:07]} 55. Rfd1 {[%clk 0:00:04]}  Qb4 {[%clk 0:00:07]} 56. R1d2 {[%clk 0:00:04]}  Re7 {[%clk 0:00:08]} 57. Rc3 {[%clk 0:00:04]}  a5 {[%clk 0:00:08]} 58. Rdc2 {[%clk 0:00:04]}  a4 {[%clk 0:00:08]} 59. Ka2 {[%clk 0:00:04]}  axb3+ {[%clk 0:00:09]} 60. Rxb3 {[%clk 0:00:05]}  Ra7+ {[%clk 0:00:09]} 61. Kb2 {[%clk 0:00:05]}  Qd4+ {[%clk 0:00:10]} 62. Rbc3 {[%clk 0:00:06]}  Rb7+ {[%clk 0:00:10]} 63. Kc1 {[%clk 0:00:06]}  Qg1+ {[%clk 0:00:10]} 64. Kd2 {[%clk 0:00:06]}  Qf2+ {[%clk 0:00:10]} 65. Kd3 {[%clk 0:00:06]}  Qf5+ {[%clk 0:00:10]} 66. Kd2 {[%clk 0:00:07]}  Rb4 {[%clk 0:00:10]} 67. Rxc6 {[%clk 0:00:07]}  Rd4+ {[%clk 0:00:10]} 68. Kc1 {[%clk 0:00:07]}  Qf1+ {[%clk 0:00:11]} 69. Kb2 {[%clk 0:00:07]}  Qb5+ {[%clk 0:00:11]} 70. Kc1 {[%clk 0:00:07]}  Re4 {[%clk 0:00:11]} 71. Rc7 {[%clk 0:00:07]}  Qb4 {[%clk 0:00:09]} 72. Be8+ {[%clk 0:00:06]}  Kh6 {[%clk 0:00:08]} 73. Rh2+ {[%clk 0:00:06]}  Kg5 {[%clk 0:00:09]} 74. Rhc2 {[%clk 0:00:06]}  Re1# {[%clk 0:00:09]} 0-1